bitfinex/quotes_ETHUSD_20251218
["timestamp","ask_amount","ask_price","bid_price","bid_amount"]
[1766064974514,2.4294,2909.2,2907.7,0.46438023]
[1766064974717,5.7406,2908.9,2907.2,0.46438023]
[1766064974917,5.7406,2908.7,2907.2,0.46438023]
[1766064975120,6.146104,2908.5,2906.5,5.1666]
[1766064975363,0.405504,2908.1,2906.7,0.46438023]
[1766064975653,0.621,2908.0,2906.9,2.5961]
[1766064975846,0.621,2907.9,2906.6,3.03488023]
[1766064976017,0.621,2907.9,2906.6,3.06048023]
[1766064976213,0.621,2907.9,2906.6,5.63098023]
[1766064976413,0.621,2907.9,2906.0,2.5705]
[1766064976619,0.63616,2907.8,2906.5,3.4405406]
[1766064976828,0.63616,2907.8,2906.3,0.46438023]
[1766064977128,5.7406,2910.7,2907.8,2.89295123]
[1766064977317,0.621,2910.8,2909.2,3.43737109]
[1766064977522,5.7406,2911.1,2909.2,3.43737109]
[1766064977523,5.7406,2911.1,2909.3,3.03488023]
[1766064977855,1.19506,2911.0,2909.5,0.46438023]
[1766064978160,1.19506,2911.0,2909.6,0.12399325]
[1766064978161,0.57406,2911.0,2909.6,0.12399325]
[1766064978444,0.621,2910.9,2909.7,0.46438023]
[1766064978615,0.57406,2911.0,2909.3,0.46438023]
[1766064978819,0.621,2910.9,2909.3,0.46438023]
[1766064979019,0.57406,2911.0,2909.6,2.5705]
[1766064979325,0.621,2910.9,2909.7,0.46438023]
[1766064979841,2.4294,2912.0,2910.0,2.5705]
[1766064980018,4.05518386,2911.9,2910.2,2.5705]
[1766064980222,7.48946203,2911.9,2910.2,2.5705]
[1766064980450,1.5659462,2911.8,2910.2,2.5705]
[1766064980953,2.4294,2911.6,2910.1,0.08962427]
[1766064981137,5.7406,2911.5,2910.1,0.08962427]
[1766064981319,2.4294,2911.1,2909.1,0.08962427]
[1766064981519,2.4294,2910.6,2908.6,0.08962427]
[1766064981749,0.621,2910.5,2909.0,2.66012427]
[1766064981925,0.621,2910.4,2909.2,2.66012427]
[1766064982121,0.621,2910.3,2909.2,0.08962427]
[1766064982332,8.17,2910.2,2908.6,2.66012427]
[1766064982534,0.46438023,2910.5,2909.3,3.43723683]
[1766064982830,0.621,2910.4,2909.4,2.5705]
[1766064983037,0.621,2910.3,2909.4,2.66012427]
[1766064983239,0.621,2910.2,2909.4,2.66012427]
[1766064983652,3.43573762,2910.6,2909.4,2.66012427]
[1766064983653,0.621,2910.1,2909.4,2.66012427]
[1766064983951,7.33321973,2911.7,2909.3,3.03488023]
[1766064984163,8.17,2911.5,2909.3,3.03488023]
[1766064984454,2.4294,2911.3,2909.4,0.08962427]
[1766064984622,0.621,2911.4,2909.4,0.08962427]
[1766064984823,5.7406,2911.1,2909.3,3.03488023]
[1766064985121,0.621,2911.4,2909.3,3.03488023]
[1766064985122,5.7406,2910.9,2909.4,0.5540045]
[1766064985333,6.8723799,2910.2,2908.5,3.43818484]
[1766064985637,0.62,2910.1,2908.9,0.08962427]
[1766064985948,5.7406,2910.2,2908.9,0.08962427]
[1766064986149,0.62,2910.0,2908.9,0.12400152]
[1766064986354,0.62,2910.0,2908.6,2.09422427]
[1766064987081,5.7406,2911.1,2909.1,4.5781]
[1766064987352,0.002,2910.2,2909.2,2.66012427]
[1766064987549,0.46438023,2910.9,2909.3,2.0255]
[1766064987550,0.62,2910.1,2909.3,2.0255]
[1766064987722,0.405504,2910.7,2909.3,2.0255]
[1766064987923,0.405504,2910.7,2908.8,3.52743297]
[1766064987924,0.46438023,2910.4,2908.3,0.08962427]
[1766064988227,0.46438023,2910.1,2908.7,0.08962427]
[1766064988419,1.06655242,2910.0,2908.7,0.08962427]
[1766064988627,1.06575242,2910.0,2908.7,0.08962427]
[1766064988955,0.62,2909.9,2908.7,0.08962427]
[1766064989456,5.7406,2909.5,2907.8,5.4645191]
[1766064989626,1.19406,2909.4,2908.0,2.11512427]
[1766064990135,0.57406,2909.4,2908.0,5.46427255]
[1766064990335,0.62,2909.3,2908.1,0.08962427]
[1766064990524,0.405504,2909.6,2908.1,0.93841098]
[1766064990729,0.66104842,2910.0,2908.7,0.8144]
[1766064990937,0.62,2909.9,2908.9,2.0255]
[1766064991140,0.62,2909.8,2908.9,2.0255]
[1766064991382,9.14791294,2909.7,2907.3,3.43956893]
[1766064991543,0.46438023,2908.9,2907.4,0.08962427]
[1766064991741,0.62,2908.8,2907.6,0.08962427]
[1766064991942,2.4294,2909.1,2907.7,0.03439144]
[1766064992175,0.405504,2909.3,2907.6,0.08962427]
[1766064992176,0.62,2909.0,2907.8,0.08962427]
[1766064992469,0.46438023,2909.3,2907.8,0.95292427]
[1766064992876,0.62,2909.2,2907.8,0.95292427]
[1766064993047,0.62,2909.2,2907.8,0.8633]
[1766064993243,8.79,2909.2,2907.4,0.08962427]
[1766064993545,7.80062064,2909.1,2907.7,0.46438023]
[1766064993746,4.36302933,2909.1,2907.7,0.46438023]
[1766064993947,2.834904,2909.8,2908.0,0.8671]
[1766064994155,3.43607188,2910.3,2908.0,0.8671]
[1766064994156,8.17,2909.7,2908.0,0.8671]
[1766064994341,2.4294,2909.7,2908.2,0.8708]
[1766064994591,1.08438023,2909.6,2908.2,0.8708]
[1766064995169,1.08438023,2909.5,2907.9,0.08962427]
[1766064995370,1.43575825,2909.5,2907.9,0.08962427]
[1766064995546,3.4371348,2909.4,2907.9,0.5540045]
[1766064996150,3.4371348,2909.4,2907.9,0.96412427]
[1766064996358,3.4371348,2909.4,2908.0,0.46438023]
[1766064996673,4.5110647,2909.4,2907.9,0.96412427]
[1766064997069,7.9481995,2909.4,2907.9,0.96412427]
[1766064997251,2.4294,2908.8,2907.8,0.001]
[1766064997450,5.7406,2908.4,2907.8,0.001]
[1766064997651,1.08438023,2908.3,2907.8,0.001]
[1766064998241,0.62,2908.2,2907.8,0.001]
[1766064998657,10.46030963,2908.4,2907.8,0.001]
[1766064998847,0.62,2908.1,2907.8,0.001]
[1766064999047,6.146104,2908.9,2907.8,0.001]
[1766064999048,5.7406,2908.9,2907.8,0.001]
[1766064999276,12.37747557,2908.8,2907.8,0.001]
[1766064999481,0.46438023,2908.4,2907.8,0.001]
[1766064999683,0.62,2908.3,2907.8,0.001]
[1766065000251,3.43800967,2908.7,2907.8,0.001]
[1766065000591,0.62,2908.6,2907.8,0.001]
[1766065000802,1.96979331,2908.6,2907.8,0.001]
[1766065001153,1.34979331,2908.6,2907.8,0.001]
[1766065001461,3.43650231,2910.0,2907.8,0.001]
[1766065001462,3.4371348,2909.4,2907.8,0.001]
[1766065001782,0.46438023,2909.3,2907.8,0.001]
[1766065001989,0.46438023,2909.3,2907.8,0.09062427]
[1766065002195,8.17,2909.6,2907.9,0.2871]
[1766065002196,0.62,2909.2,2907.9,0.2871]
[1766065002489,5.86942427,2909.1,2907.3,0.46438023]
[1766065002673,8.2921,2908.6,2907.4,0.12401926]
[1766065002875,0.46438023,2909.0,2907.4,3.56344853]
[1766065003073,0.87564802,2908.9,2907.6,0.08962427]
[1766065003271,0.405504,2909.4,2907.8,0.39172427]
[1766065003576,0.46438023,2909.0,2907.8,0.39172427]
[1766065003773,0.46438023,2909.0,2907.8,0.08962427]
[1766065003774,0.62,2908.9,2907.8,0.08962427]
[1766065004567,8.2921,2909.1,2907.8,0.5540045]
[1766065004766,0.62,2909.0,2907.8,0.08962427]
[1766065005282,0.62,2908.9,2907.8,0.001]
[1766065005784,5.17753987,2909.0,2907.8,0.001]
[1766065006084,0.405504,2908.6,2907.8,0.001]
[1766065006262,8.697604,2908.6,2907.8,0.001]
[1766065006466,0.62,2908.5,2907.8,0.001]
[1766065007181,0.62,2908.5,2907.9,0.08962427]
[1766065007383,8.2921,2909.0,2908.1,0.08962427]
[1766065007555,0.62,2908.8,2908.1,0.08962427]
[1766065007885,4.26698467,2908.9,2908.1,0.08962427]
[1766065008093,1.08438023,2908.8,2908.1,0.08962427]
[1766065008390,11.72971557,2909.0,2908.1,0.08962427]
[1766065008391,4.52200902,2909.0,2908.3,0.08962427]
[1766065008698,3.90200902,2909.0,2908.3,0.08962427]
[1766065008897,1.08438023,2909.0,2908.3,0.08962427]
[1766065009056,0.62,2909.1,2908.3,0.08962427]
[1766065009486,0.619,2909.0,2908.1,0.08962427]
[1766065009784,7.69112052,2909.5,2908.1,0.08962427]
[1766065009785,8.2921,2910.7,2908.9,0.08962427]
[1766065009984,3.43548165,2910.8,2909.2,0.08962427]
[1766065009985,1.79175816,2910.6,2909.2,0.08962427]
[1766065010190,0.46438023,2910.4,2909.4,0.08962427]
[1766065010384,8.9111,2910.5,2909.5,0.08962427]
[1766065010385,8.2921,2910.5,2909.5,0.08962427]
[1766065010563,0.619,2910.3,2909.5,0.08962427]
[1766065011883,8.2921,2910.2,2909.2,0.08962427]
[1766065012086,8.2921,2910.2,2909.4,0.08962427]
[1766065012267,10.13036304,2910.2,2909.4,0.08962427]
[1766065012665,5.7798,2909.9,2908.7,0.08962427]
[1766065012869,8.2921,2909.7,2908.9,0.08962427]
[1766065013166,8.2913,2909.7,2908.9,0.08962427]
[1766065013370,1.68364327,2910.2,2909.1,0.08962427]
[1766065013570,0.46438023,2910.2,2909.3,0.08962427]
[1766065013894,0.46438023,2910.4,2909.3,0.08962427]
[1766065014083,0.619,2910.4,2909.5,0.08962427]
[1766065014279,5.94794656,2910.7,2909.5,0.08962427]
[1766065014486,5.94794656,2910.7,2909.7,0.08962427]
[1766065014487,1.08338023,2910.6,2909.7,0.08962427]
[1766065014678,1.5110643,2910.6,2909.7,0.08962427]
[1766065014873,0.619,2910.5,2909.7,0.08962427]
[1766065015194,5.7798,2910.4,2909.5,0.08962427]
[1766065015899,9.21575699,2910.4,2909.5,0.08962427]
[1766065016101,3.1313,2910.5,2909.5,0.08962427]
[1766065016102,0.619,2910.5,2909.5,0.08962427]
[1766065016309,8.2941,2910.9,2909.7,0.08962427]
[1766065016310,0.619,2910.7,2909.7,0.08962427]
[1766065016600,1.85385816,2910.7,2909.5,0.08962427]
[1766065016963,8.2921,2910.6,2909.5,0.08962427]
[1766065017363,8.2921,2910.4,2909.3,0.08962427]
[1766065017666,0.619,2910.3,2909.3,0.08962427]
[1766065017879,0.619,2910.2,2909.5,0.08962427]
[1766065018361,1.23485816,2910.7,2909.6,0.08962427]
[1766065018802,0.87188423,2910.9,2909.8,0.08962427]
[1766065019000,0.002,2910.9,2910.0,0.08962427]
[1766065019205,8.2921,2910.8,2909.5,0.619]
[1766065019507,8.2921,2910.8,2909.2,0.08962427]
[1766065019508,5.7798,2910.3,2909.2,0.08962427]
[1766065019864,4.30565749,2910.6,2909.2,0.08962427]
[1766065020075,4.92465749,2910.6,2909.2,0.08962427]
[1766065020271,3.90015349,2910.6,2908.9,0.619]
[1766065020500,8.637504,2910.5,2909.0,0.5540045]
[1766065020661,4.51915349,2910.6,2909.4,0.08962427]
[1766065020662,1.08338023,2910.6,2909.4,0.08962427]
[1766065020861,0.405504,2910.5,2909.2,0.08962427]
[1766065021061,0.86988423,2910.1,2908.5,0.08962427]
[1766065021300,5.6883,2909.8,2908.4,0.08962427]
[1766065021467,2.27113193,2911.3,2908.4,0.08962427]
[1766065021468,0.002,2911.4,2909.7,0.08962427]
[1766065021666,8.834,2912.1,2910.8,0.08962427]
[1766065021667,0.602,2912.1,2910.8,0.08962427]
[1766065021869,4.03595176,2912.1,2910.8,0.08962427]
[1766065022068,0.46438023,2912.0,2911.0,0.08962427]
[1766065022405,0.46438023,2912.0,2910.8,0.08962427]
[1766065022608,0.46438023,2912.0,2910.1,0.08962427]
[1766065022609,0.46438023,2911.5,2910.1,0.08962427]
[1766065022779,8.232,2911.4,2910.3,0.46438023]
[1766065022983,0.86963802,2911.3,2910.1,0.08962427]
[1766065023278,1.08338023,2912.0,2910.1,0.08962427]
[1766065023698,0.46438023,2911.5,2910.3,0.08962427]
[1766065023903,6.86978324,2911.3,2910.3,0.08962427]
[1766065024214,0.002,2910.6,2910.3,0.08962427]
[1766065024388,3.43489162,2911.3,2910.3,0.08962427]
[1766065024769,8.232,2911.1,2910.0,0.619]
[1766065025096,0.85430742,2911.3,2910.1,0.08962427]
[1766065025318,8.232,2910.7,2909.4,0.08962427]
[1766065025481,0.405504,2910.6,2908.9,0.08962427]
[1766065025684,8.232,2910.5,2908.9,0.08962427]
[1766065025982,0.46438023,2910.9,2908.9,3.47209688]
[1766065026184,8.85,2910.6,2909.0,0.08962427]
[1766065026386,3.43548165,2910.8,2909.5,0.08962427]
[1766065026590,0.86988423,2910.5,2908.8,0.08962427]
[1766065026788,0.46438023,2910.0,2908.3,0.001]
[1766065027003,0.46438023,2909.8,2908.6,0.08962427]
[1766065027178,1.08238023,2909.8,2908.6,0.08962427]
[1766065027380,13.7419266,2910.8,2908.6,0.08962427]
[1766065027580,0.405504,2910.6,2909.2,0.08962427]
[1766065027890,3.43548165,2910.8,2909.4,0.08962427]
[1766065028505,8.69638023,2910.8,2909.0,0.70762427]
[1766065028705,0.405504,2910.7,2909.0,0.70762427]
[1766065028871,0.46438023,2910.5,2909.2,0.08962427]
[1766065029202,0.46438023,2910.6,2909.4,0.08962427]
[1766065029510,8.232,2910.3,2909.0,0.618]
[1766065029876,8.232,2910.2,2909.0,0.618]
[1766065030075,3.43642611,2910.0,2909.0,0.618]
[1766065030307,3.8418665,2910.1,2908.7,0.46438023]
[1766065030514,3.8418665,2910.1,2908.6,0.08962427]
[1766065030515,7.278229,2910.1,2908.6,0.08962427]
[1766065030803,7.278229,2910.1,2908.5,0.618]
[1766065030804,0.405504,2909.7,2908.5,0.618]
[1766065030977,1.19220313,2910.0,2908.6,0.0343808]
[1766065031173,8.232,2910.2,2908.6,0.0343808]
[1766065031174,3.43623621,2910.2,2908.7,0.03437961]
[1766065031493,0.46438023,2910.2,2909.0,0.08962427]
[1766065031701,0.618,2910.4,2909.0,0.08962427]
[1766065031871,0.618,2910.4,2909.0,3.99151565]
[1766065032078,4.05395468,2910.4,2909.0,0.08962427]
[1766065032581,7.32374285,2910.4,2909.0,0.08962427]
[1766065032819,0.405504,2910.2,2909.0,0.08962427]
[1766065033470,9.01708423,2910.0,2908.5,1.08238023]
[1766065033674,9.63508423,2910.0,2908.5,1.08238023]
[1766065033870,9.63508423,2910.0,2908.5,0.618]
[1766065034112,3.43678042,2909.7,2908.5,0.618]
[1766065034513,2.5969,2909.9,2908.7,0.08962427]
[1766065034682,3.43657824,2909.9,2908.7,0.08962427]
[1766065035287,4.92436775,2910.0,2908.7,0.08962427]
[1766065035490,4.92436775,2910.0,2908.8,0.03437843]
[1766065035491,3.90086375,2910.0,2908.8,0.03437843]
[1766065035679,3.90086375,2910.0,2908.7,0.12400388]
[1766065036084,7.33734727,2910.0,2908.7,0.08962427]
[1766065036296,3.90086375,2910.0,2908.7,0.08962427]
[1766065036609,1.08238023,2910.2,2909.1,0.08962427]
[1766065036978,0.002,2910.8,2909.1,0.08962427]
[1766065037326,7.95268431,2910.7,2909.1,0.08962427]
[1766065037489,10.54958431,2910.7,2909.1,0.08962427]
[1766065037694,2.07766243,2910.6,2909.1,0.08962427]
[1766065037998,1.08058023,2910.5,2909.1,0.08962427]
[1766065038186,3.43559968,2910.7,2909.3,0.08962427]
[1766065038393,1.08138023,2910.6,2909.3,0.08962427]
[1766065038788,0.002,2910.8,2909.5,0.08962427]
[1766065038990,3.43631952,2911.8,2910.4,0.5540045]
[1766065039178,3.43631952,2911.8,2910.6,0.08962427]
[1766065039179,0.002,2911.8,2910.6,0.08962427]
[1766065039924,8.30764087,2911.5,2909.2,0.5540045]
[1766065040092,0.617,2911.4,2909.9,0.08962427]
[1766065040412,4.05168327,2911.5,2910.0,0.69629489]
[1766065040715,8.1472,2911.6,2910.1,1.08138023]
[1766065040889,15.0163147,2911.6,2910.1,1.08138023]
[1766065041215,0.46438023,2911.5,2910.1,1.08138023]
[1766065041394,0.46438023,2911.5,2910.3,0.001]
[1766065041712,8.1472,2910.9,2910.3,0.001]
[1766065042079,0.405504,2910.8,2910.3,0.001]
[1766065042281,5.5503,2910.5,2909.4,0.617]
[1766065042521,2.5969,2910.2,2909.4,0.617]
[1766065042680,5.5503,2909.9,2909.1,0.001]
[1766065042880,6.86954728,2911.4,2909.4,3.4371348]
[1766065043108,5.5503,2910.9,2909.5,0.96423073]
[1766065043307,8.61158023,2910.6,2909.3,0.0008]
[1766065043512,6.1673,2910.9,2909.4,0.46438023]
[1766065043711,8.7642,2910.9,2909.4,7.4282566]
[1766065043885,8.61158023,2911.3,2909.5,0.405504]
[1766065044086,0.46438023,2911.1,2909.6,0.70662427]
[1766065044420,8.1472,2911.2,2909.8,0.08962427]
[1766065044632,3.627,2912.0,2910.5,0.08962427]
[1766065044633,0.002,2912.0,2910.5,0.08962427]
[1766065044791,0.002,2912.0,2910.8,0.08962427]
[1766065045125,0.002,2912.6,2911.7,0.08962427]
[1766065045288,0.002,2912.6,2911.9,0.08962427]
[1766065045494,0.002,2913.0,2912.2,0.08962427]
[1766065045693,3.43154933,2914.2,2912.3,0.74096139]
[1766065045694,5.5523,2914.0,2912.3,0.74096139]
[1766065045922,5.5503,2913.7,2912.3,0.617]
[1766065046099,8.1472,2913.5,2912.3,4.05059756]
[1766065046299,0.46438023,2913.4,2912.6,0.08962427]
[1766065046522,8.1472,2913.5,2912.6,0.08962427]
[1766065046922,11.57954193,2913.5,2912.6,0.08962427]
[1766065047224,5.5503,2913.3,2912.3,0.617]
[1766065047427,5.5503,2913.3,2912.2,0.08962427]
[1766065047428,0.46438023,2913.2,2912.2,0.08962427]
[1766065047724,2.5969,2912.9,2911.8,0.08962427]
[1766065048036,5.5503,2913.5,2912.3,0.46438023]
[1766065048324,6.1663,2913.5,2912.6,0.08962427]
[1766065048622,8.98261283,2913.5,2912.6,0.08962427]
[1766065048805,5.5503,2913.5,2912.4,0.08962427]
[1766065049006,5.5503,2913.5,2912.6,0.08962427]
[1766065049529,0.002,2914.0,2912.6,0.08962427]
[1766065049695,0.002,2914.0,2913.5,0.08962427]
[1766065049991,0.6,2914.7,2913.9,0.08962427]
[1766065050398,0.6,2914.7,2913.9,3.52139182]
[1766065050593,0.6,2914.7,2913.9,0.08962427]
[1766065050812,0.6,2914.7,2913.5,0.08962427]
[1766065051022,8.1472,2914.6,2913.4,0.616]
[1766065051218,5.5503,2914.3,2913.4,0.616]
[1766065051431,8.1472,2914.3,2913.4,0.616]
[1766065052243,0.002,2915.2,2913.8,6.19894453]
[1766065052533,0.002,2915.2,2913.9,0.49869849]
[1766065052697,0.002,2915.2,2914.2,0.08962427]
[1766065052898,0.002,2915.5,2914.3,0.65031355]
[1766065053108,0.002,2915.5,2914.5,0.08962427]
[1766065053298,0.002,2915.5,2914.3,0.616]
[1766065053498,0.002,2915.5,2914.4,0.03431237]
[1766065053743,2.5969,2916.2,2914.6,0.08962427]
[1766065053902,0.46438023,2916.1,2914.6,0.08962427]
[1766065054311,5.5503,2915.9,2914.6,0.08962427]
[1766065054803,5.5503,2915.9,2914.5,4.04705527]
[1766065055112,0.002,2916.4,2915.2,0.08962427]
[1766065055299,5.5503,2916.3,2915.3,0.65030178]
[1766065055506,2.5969,2916.0,2914.8,0.616]
[1766065055811,5.5503,2915.9,2914.8,0.616]
[1766065055998,5.5503,2915.9,2914.9,0.03430649]
[1766065056199,8.97985786,2915.9,2914.8,0.616]
[1766065056432,11.57675786,2915.9,2914.8,0.616]
[1766065056729,8.1472,2915.9,2914.8,0.616]
[1766065056914,15.8472429,2915.9,2914.8,0.616]
[1766065057115,0.84103256,2915.9,2914.8,0.616]
[1766065057433,0.002,2915.7,2914.8,0.616]
[1766065057727,0.002,2915.7,2914.8,1.08038023]
[1766065058128,0.002,2915.7,2914.8,0.616]
[1766065058329,0.002,2915.7,2914.8,0.6168]
[1766065058531,0.002,2915.7,2914.8,0.0008]
[1766065058735,2.5989,2915.7,2914.8,0.0008]
[1766065059045,0.25989,2915.6,2914.0,0.615]
[1766065059264,0.002,2915.7,2914.3,0.08962427]
[1766065059602,2.5989,2915.7,2914.4,0.03431237]
[1766065059808,0.002,2915.7,2914.3,0.08962427]
[1766065060217,0.002,2915.7,2914.6,3.43098849]
[1766065060416,0.002,2915.7,2914.7,0.03430884]
[1766065060839,2.5969,2915.6,2914.3,0.08962427]
[1766065061020,0.002,2915.7,2914.3,0.08962427]
[1766065061212,8.1472,2915.6,2914.3,0.08962427]
[1766065061740,5.5503,2915.6,2914.3,0.08962427]
[1766065061938,2.5989,2915.7,2914.4,0.46438023]
[1766065062238,0.002,2916.4,2914.8,0.08962427]
[1766065062403,0.002,2916.4,2914.9,0.03430649]
[1766065062607,0.002,2916.4,2915.0,0.08962427]
[1766065062608,0.0012,2916.4,2915.0,0.08962427]
[1766065062926,0.002,2916.8,2915.4,0.08962427]
[1766065063129,0.002,2916.8,2915.6,0.08962427]
[1766065063311,0.60357575,2916.9,2916.0,0.08962427]
[1766065063515,0.002,2917.0,2916.4,0.08962427]
[1766065063728,0.002,2917.0,2916.6,0.08962427]
[1766065064041,0.002,2917.0,2916.2,0.615]
[1766065064244,0.002,2917.0,2916.3,0.12391429]
[1766065064417,0.002,2917.0,2916.2,1.07938023]
[1766065064418,0.002,2917.0,2916.2,0.70462427]
[1766065064610,5.8042,2917.0,2916.1,0.614]
[1766065064812,0.82205,2917.0,2916.1,0.614]
[1766065065147,0.002,2917.0,2916.2,0.12391547]
[1766065065308,0.002,2917.0,2916.4,0.5540045]
[1766065065512,1.625,2917.9,2917.1,0.46438023]
[1766065065838,1.625,2917.9,2917.4,0.08962427]
[1766065066037,1.625,2917.9,2917.4,0.12390136]
[1766065066237,1.625,2917.9,2917.4,0.08962427]
[1766065066410,1.625,2917.9,2917.5,0.08962427]
[1766065066606,1.625,2917.9,2916.9,0.08962427]
[1766065066607,5.052172,2917.9,2916.9,0.08962427]
[1766065066806,5.052172,2917.9,2915.8,0.08962427]
[1766065066807,2.3943,2917.4,2915.8,0.08962427]
[1766065067007,5.8022,2917.3,2916.2,0.70362427]
[1766065067247,6.3074172,2917.8,2916.7,0.08962427]
[1766065067416,8.1965,2917.7,2916.7,0.08962427]
[1766065067618,0.96959743,2917.8,2916.7,0.08962427]
[1766065068014,5.8022,2917.6,2916.2,0.70362427]
[1766065068341,0.97925013,2917.7,2916.2,0.614]
[1766065068342,2.3943,2917.3,2916.2,0.614]
[1766065068531,8.1965,2916.9,2916.2,0.614]
[1766065069118,5.8022,2916.8,2915.4,0.08962427]
[1766065069342,5.8022,2916.5,2915.5,0.1239237]
[1766065069541,5.8022,2916.5,2915.5,0.08962427]
[1766065069839,5.8022,2916.4,2915.5,0.08962427]
[1766065070011,5.8022,2916.4,2915.3,0.08962427]
[1766065070212,5.8022,2916.3,2915.1,0.70362427]
[1766065070526,3.21395,2916.4,2915.3,0.08962427]
[1766065070708,9.23105728,2916.5,2915.3,0.08962427]
[1766065070915,3.42885728,2916.5,2915.3,0.08962427]
[1766065071443,10.74821403,2917.2,2915.5,0.08962427]
[1766065071632,6.8558892,2917.2,2915.2,0.49868319]
[1766065071942,5.8022,2916.0,2914.9,0.08962427]
[1766065072513,4.04304741,2916.3,2914.9,0.08962427]
[1766065072846,7.47209482,2916.3,2914.9,0.08962427]
[1766065073144,5.8022,2916.2,2914.7,0.70362427]
[1766065073344,5.8022,2916.0,2914.7,0.70362427]
[1766065073746,5.8022,2916.0,2914.8,0.4986879]
[1766065073947,5.8022,2916.0,2914.7,4.13443587]
[1766065073948,5.8022,2916.0,2914.9,0.08962427]
[1766065074249,15.05624104,2916.5,2915.1,0.08962427]
[1766065074442,8.1965,2916.4,2915.1,0.08962427]
[1766065074949,0.97806767,2916.4,2915.1,0.08962427]
[1766065075150,8.1965,2916.0,2915.1,0.08962427]
[1766065075330,8.1965,2916.0,2915.1,0.12392841]
[1766065076245,5.8022,2915.9,2914.5,0.09062427]
[1766065076459,5.8022,2915.6,2914.6,0.613]
[1766065076751,5.8022,2915.6,2914.7,0.08962427]
[1766065077044,9.23149352,2916.1,2915.1,0.08962427]
[1766065077626,5.8022,2916.0,2915.1,0.08962427]
[1766065077822,8.1965,2915.8,2914.9,0.08962427]
[1766065078028,3.42929352,2916.1,2915.1,0.08962427]
[1766065078653,11.62579352,2916.1,2915.1,0.08962427]
[1766065079050,15.05508704,2916.1,2915.1,0.08962427]
[1766065079224,5.8022,2916.0,2915.1,0.08962427]
[1766065079717,2.3943,2915.5,2915.0,0.001]
[1766065079919,0.94489414,2916.0,2915.0,0.001]
[1766065080120,2.3943,2916.3,2915.1,0.08962427]
[1766065080540,9.25231204,2916.3,2915.3,0.08962427]
[1766065080741,2.3943,2916.3,2915.3,0.08962427]
[1766065080924,9.25230677,2916.3,2915.3,0.08962427]
[1766065081126,9.25230677,2916.3,2915.1,0.08962427]
[1766065081127,5.7953,2916.1,2915.1,0.09042427]
[1766065081341,2.5234,2916.3,2915.1,0.09042427]
[1766065081542,2.5234,2916.3,2915.3,0.08962427]
[1766065081742,8.3187,2916.2,2915.1,0.09042427]
[1766065082024,3.42902235,2916.3,2915.1,0.0008]
[1766065082025,8.3187,2916.0,2915.1,0.0008]
[1766065082349,3.42900735,2916.3,2915.2,0.08962427]
[1766065082532,8.3187,2916.2,2915.2,0.08962427]
[1766065082730,0.002,2916.5,2916.1,0.08962427]
[1766065082933,0.002,2916.5,2916.4,0.08962427]
[1766065083129,0.002,2916.5,2916.0,0.613]
[1766065084052,0.002,2916.5,2915.3,0.03430178]
[1766065084053,5.7953,2916.4,2915.3,0.03430178]
[1766065084221,0.002,2916.5,2915.3,0.03430178]
[1766065084222,0.002,2916.5,2915.5,0.08962427]
[1766065084565,3.4307775,2916.5,2915.5,0.08962427]
[1766065084724,2.5234,2916.1,2915.3,0.08962427]
[1766065084920,2.5234,2916.1,2914.9,0.08962427]
[1766065084921,9.015223,2915.4,2912.1,3.43387704]
[1766065085126,0.46438023,2913.4,2910.9,0.182]
[1766065085339,0.46438023,2912.9,2910.9,0.182]
[1766065085538,0.612,2912.8,2911.3,3.43487716]
[1766065085823,0.612,2912.7,2910.8,0.612]
[1766065086046,5.7953,2912.4,2911.0,12.485293]
[1766065086252,2.5234,2911.8,2910.5,3.43580794]
[1766065086449,6.45023024,2911.7,2910.3,0.001]
[1766065086626,5.7953,2911.5,2910.3,0.001]
[1766065086954,2.5234,2913.1,2910.4,5.566463]
[1766065087155,3.625,2913.2,2910.6,0.182]
[1766065087156,2.5234,2912.3,2910.6,0.182]
[1766065087355,2.5234,2911.8,2910.4,2.22053]
[1766065087547,3.1354,2911.7,2910.3,0.001]
[1766065087742,0.612,2911.6,2910.3,0.001]
[1766065087943,0.46438023,2912.2,2910.5,0.182]
[1766065088242,0.46438023,2912.2,2910.3,0.48260067]
[1766065088243,2.5234,2912.0,2910.3,0.001]
[1766065088446,2.5234,2911.8,2910.3,0.001]
[1766065088653,2.5234,2911.8,2910.5,0.08962427]
[1766065088850,0.612,2911.7,2910.5,0.08962427]
[1766065089260,0.612,2911.6,2910.3,0.09062427]
[1766065089438,0.612,2911.5,2910.4,0.19921984]
[1766065089766,6.4073,2911.5,2910.4,0.71621717]
[1766065089969,8.9307,2911.5,2910.3,0.09062427]
[1766065090132,8.9307,2911.5,2910.3,0.001]
[1766065090133,5.7953,2911.2,2910.3,0.001]
[1766065090333,8.3187,2911.0,2910.3,0.001]
[1766065090533,8.3187,2911.0,2909.2,0.08962427]
[1766065090534,5.7953,2910.6,2909.2,0.08962427]
[1766065090762,0.612,2910.5,2909.3,3.43716844]
[1766065090957,8.3187,2910.4,2909.3,0.69652599]
[1766065091165,8.3187,2910.4,2909.2,0.08962427]
[1766065091362,5.7953,2910.3,2909.1,0.001]
[1766065091628,10.77039393,2911.0,2909.1,0.001]
[1766065091629,2.5234,2910.8,2909.1,0.001]
[1766065091828,5.7953,2911.5,2909.8,0.183]
[1766065092063,0.612,2911.4,2909.8,0.64738023]
[1766065092365,0.46438023,2911.3,2909.9,0.42564684]
[1766065092563,0.612,2911.2,2910.3,0.46438023]
[1766065092861,2.4976,2911.7,2910.3,0.46438023]
[1766065093060,2.4976,2911.7,2910.2,0.46438023]
[1766065093061,0.612,2911.3,2910.2,0.46438023]
[1766065093761,6.0506,2911.2,2909.9,0.40841577]
[1766065093935,2.4976,2911.2,2909.8,0.46438023]
[1766065094134,6.0506,2912.7,2910.3,10.50902023]
[1766065094331,3.43191496,2913.9,2910.3,0.46438023]
[1766065094332,6.0506,2912.0,2910.3,0.46438023]
[1766065094552,0.405504,2911.5,2910.3,0.48158769]